[Event "Titled Tuesday Blitz October 31 Late 2023"]
[White "Krzyzanowski, Marcin"]
[Black "Bok, Benjamin"]
[WhiteFideId "1132199"]
[BlackFideId "1017063"]
[WhiteElo "2777"]
[BlackElo "2960"]
[Result "0-1"]
[Round "6"]
[TimeControl "180+1"]
[Date "2023.10.31"]
[WhiteClock "0:00:03"]
[BlackClock "0:00:18"]
[Board "5"]

1. e4 {[%clk 0:03:00]}  c5 {[%clk 0:02:58]} 2. Nf3 {[%clk 0:03:01]}  d6 {[%clk 0:02:58]} 3. d4 {[%clk 0:03:01]}  cxd4 {[%clk 0:02:59]} 4. Nxd4 {[%clk 0:03:02]}  Nf6 {[%clk 0:03:00]} 5. Nc3 {[%clk 0:03:03]}  a6 {[%clk 0:03:00]} 6. Be2 {[%clk 0:03:03]}  e5 {[%clk 0:03:01]} 7. Nb3 {[%clk 0:03:03]}  Be7 {[%clk 0:03:01]} 8. O-O {[%clk 0:03:04]}  O-O {[%clk 0:03:01]} 9. Qd3 {[%clk 0:03:04]}  Be6 {[%clk 0:03:00]} 10. Bd2 {[%clk 0:03:04]}  Nbd7 {[%clk 0:03:00]} 11. Nd5 {[%clk 0:03:04]}  Bxd5 {[%clk 0:02:54]} 12. exd5 {[%clk 0:03:05]}  Rc8 {[%clk 0:02:52]} 13. c4 {[%clk 0:02:59]}  g6 {[%clk 0:02:51]} 14. a4 {[%clk 0:02:43]}  Ne8 {[%clk 0:02:49]} 15. a5 {[%clk 0:02:36]}  Bg5 {[%clk 0:02:47]} 16. Bxg5 {[%clk 0:02:31]}  Qxg5 {[%clk 0:02:48]} 17. Nd2 {[%clk 0:02:30]}  f5 {[%clk 0:02:46]} 18. b4 {[%clk 0:02:20]}  e4 {[%clk 0:02:38]} 19. Qe3 {[%clk 0:02:11]}  Qxe3 {[%clk 0:01:56]} 20. fxe3 {[%clk 0:02:11]}  Nef6 {[%clk 0:01:57]} 21. Rfc1 {[%clk 0:02:05]}  Ne5 {[%clk 0:01:56]} 22. Nb3 {[%clk 0:01:46]}  Nd3 {[%clk 0:01:26]} 23. Bxd3 {[%clk 0:01:42]}  exd3 {[%clk 0:01:27]} 24. Nd4 {[%clk 0:01:04]}  Rfe8 {[%clk 0:01:27]} 25. Ne6 {[%clk 0:00:43]}  d2 {[%clk 0:01:14]} 26. Rd1 {[%clk 0:00:23]}  Rxc4 {[%clk 0:01:08]} 27. Rxd2 {[%clk 0:00:23]}  Nxd5 {[%clk 0:01:08]} 28. Rxd5 {[%clk 0:00:20]}  Rxe6 {[%clk 0:01:09]} 29. b5 {[%clk 0:00:18]}  Rxe3 {[%clk 0:00:27]} 30. bxa6 {[%clk 0:00:18]}  bxa6 {[%clk 0:00:27]} 31. Ra2 {[%clk 0:00:09]}  Re6 {[%clk 0:00:21]} 32. Rb2 {[%clk 0:00:09]}  Rc5 {[%clk 0:00:21]} 33. Rxc5 {[%clk 0:00:02]}  dxc5 {[%clk 0:00:22]} 34. Rb6 {[%clk 0:00:02]}  Kf7 {[%clk 0:00:19]} 35. Kf2 {[%clk 0:00:03]}  c4 {[%clk 0:00:18]} 36. Kf3 {[%clk 0:00:03]}  c3 {[%clk 0:00:18]} 37. Rb7+ {[%clk 0:00:03]}  Re7 {[%clk 0:00:17]} 38. Rb1 {[%clk 0:00:03]}  c2 {[%clk 0:00:17]} 39. Rc1 {[%clk 0:00:03]}  Rc7 {[%clk 0:00:18]} 40. Ke3 {[%clk 0:00:04]}  Ke6 {[%clk 0:00:18]} 41. Kd2 {[%clk 0:00:04]}  Kd5 {[%clk 0:00:18]} 42. h4 {[%clk 0:00:04]}  Kd4 {[%clk 0:00:18]} 43. g3 {[%clk 0:00:03]}  Rc5 {[%clk 0:00:18]} 44. h5 {[%clk 0:00:02]}  gxh5 {[%clk 0:00:18]} 45. Ke2 {[%clk 0:00:03]}  Kc3 {[%clk 0:00:18]} 46. Rh1 {[%clk 0:00:01]}  Kb2 {[%clk 0:00:18]} 47. Rh2 {[%clk 0:00:01]}  c1=Q {[%clk 0:00:18]} 48. Kf3+ {[%clk 0:00:02]}  Kb3 {[%clk 0:00:18]} 49. g4 {[%clk 0:00:03]}  Rc3+ {[%clk 0:00:17]} 50. Kg2 {[%clk 0:00:03]}  Qd2+ {[%clk 0:00:17]} 51. Kh1 {[%clk 0:00:03]}  Rc1# {[%clk 0:00:18]} 0-1


[Site "https://www.chess.com"]

[Event "Titled Tuesday Blitz October 31 Late 2023"]
[White "Hakobyan, Aram"]
[Black "Eljanov, Pavel"]
[WhiteFideId "13306677"]
[BlackFideId "14102951"]
[WhiteElo "3059"]
[BlackElo "2829"]
[Result "0-1"]
[Round "6"]
[TimeControl "180+1"]
[Date "2023.10.31"]
[WhiteClock "0:00:00"]
[BlackClock "0:00:19"]
[Board "6"]

1. d4 {[%clk 0:03:00]}  d5 {[%clk 0:02:59]} 2. c4 {[%clk 0:03:01]}  e6 {[%clk 0:03:00]} 3. Nc3 {[%clk 0:03:01]}  Nf6 {[%clk 0:03:00]} 4. Bg5 {[%clk 0:03:01]}  Be7 {[%clk 0:02:59]} 5. e3 {[%clk 0:03:01]}  h6 {[%clk 0:02:59]} 6. Bf4 {[%clk 0:03:02]}  O-O {[%clk 0:02:50]} 7. Nf3 {[%clk 0:03:02]}  c5 {[%clk 0:02:49]} 8. dxc5 {[%clk 0:03:02]}  Bxc5 {[%clk 0:02:49]} 9. Be2 {[%clk 0:03:02]}  Nc6 {[%clk 0:02:48]} 10. O-O {[%clk 0:03:01]}  dxc4 {[%clk 0:02:41]} 11. Qc2 {[%clk 0:02:59]}  Nb4 {[%clk 0:02:38]} 12. Qb1 {[%clk 0:02:59]}  Nd3 {[%clk 0:02:35]} 13. Ne5 {[%clk 0:02:58]}  Nxf4 {[%clk 0:02:30]} 14. exf4 {[%clk 0:02:59]}  Qd4 {[%clk 0:02:05]} 15. g3 {[%clk 0:02:59]}  a6 {[%clk 0:01:56]} 16. Qc2 {[%clk 0:02:49]}  Ba7 {[%clk 0:01:40]} 17. Rad1 {[%clk 0:02:45]}  Qc5 {[%clk 0:01:41]} 18. Ne4 {[%clk 0:02:09]}  Qe7 {[%clk 0:01:08]} 19. Nxf6+ {[%clk 0:01:42]}  gxf6 {[%clk 0:01:08]} 20. Nxc4 {[%clk 0:01:42]}  b5 {[%clk 0:01:07]} 21. Bf3 {[%clk 0:01:29]}  Bb7 {[%clk 0:01:06]} 22. Bxb7 {[%clk 0:01:26]}  Qxb7 {[%clk 0:01:07]} 23. Na5 {[%clk 0:01:12]}  Qf3 {[%clk 0:01:06]} 24. Nc6 {[%clk 0:01:08]}  Kg7 {[%clk 0:01:04]} 25. Nxa7 {[%clk 0:00:47]}  Rxa7 {[%clk 0:01:04]} 26. Rd3 {[%clk 0:00:45]}  Qe4 {[%clk 0:01:03]} 27. Rfd1 {[%clk 0:00:38]}  Rd7 {[%clk 0:00:54]} 28. Qd2 {[%clk 0:00:14]}  Rxd3 {[%clk 0:00:52]} 29. Qxd3 {[%clk 0:00:15]}  Qxd3 {[%clk 0:00:50]} 30. Rxd3 {[%clk 0:00:16]}  Rc8 {[%clk 0:00:49]} 31. Ra3 {[%clk 0:00:13]}  Rc6 {[%clk 0:00:44]} 32. Kg2 {[%clk 0:00:10]}  e5 {[%clk 0:00:45]} 33. f5 {[%clk 0:00:08]}  h5 {[%clk 0:00:45]} 34. Kf3 {[%clk 0:00:06]}  h4 {[%clk 0:00:40]} 35. g4 {[%clk 0:00:04]}  Rc2 {[%clk 0:00:31]} 36. b4 {[%clk 0:00:02]}  Rc4 {[%clk 0:00:30]} 37. Rxa6 {[%clk 0:00:03]}  Rf4+ {[%clk 0:00:28]} 38. Ke3 {[%clk 0:00:03]}  Rxg4 {[%clk 0:00:29]} 39. a3 {[%clk 0:00:03]}  Rg2 {[%clk 0:00:20]} 40. Ra5 {[%clk 0:00:02]}  Rxh2 {[%clk 0:00:20]} 41. Rxb5 {[%clk 0:00:03]}  h3 {[%clk 0:00:20]} 42. Rc5 {[%clk 0:00:02]}  Rh1 {[%clk 0:00:19]} 43. Kf3 {[%clk 0:00:00]}  Rg1 {[%clk 0:00:19]} 0-1


[Site "https://www.chess.com"]

[Event "Titled Tuesday Blitz October 31 Late 2023"]
[White "Le, Quang Liem"]
[Black "Szpar, Milosz"]
[WhiteFideId "12401137"]
[BlackFideId "1184989"]
[WhiteElo "3044"]
[BlackElo "2773"]
[Result "1-0"]
[Round "6"]
[TimeControl "180+1"]
[Date "2023.10.31"]
[WhiteClock "0:01:06"]
[BlackClock "0:00:10"]
[Board "7"]

1. Nf3 {[%clk 0:03:00]}  d5 {[%clk 0:02:59]} 2. e3 {[%clk 0:03:00]}  c5 {[%clk 0:02:58]} 3. b3 {[%clk 0:03:00]}  Nf6 {[%clk 0:02:55]} 4. Bb2 {[%clk 0:02:59]}  g6 {[%clk 0:02:55]} 5. c4 {[%clk 0:02:57]}  dxc4 {[%clk 0:02:54]} 6. Bxc4 {[%clk 0:02:48]}  Bg7 {[%clk 0:02:53]} 7. O-O {[%clk 0:02:42]}  O-O {[%clk 0:02:50]} 8. Qe2 {[%clk 0:02:37]}  Nc6 {[%clk 0:02:35]} 9. Rd1 {[%clk 0:02:35]}  Bg4 {[%clk 0:02:14]} 10. h3 {[%clk 0:02:35]}  Bxf3 {[%clk 0:02:14]} 11. Qxf3 {[%clk 0:02:36]}  Qc7 {[%clk 0:02:08]} 12. Nc3 {[%clk 0:02:29]}  Rad8 {[%clk 0:02:05]} 13. Rac1 {[%clk 0:02:19]}  a6 {[%clk 0:02:02]} 14. Be2 {[%clk 0:02:17]}  Nd7 {[%clk 0:01:17]} 15. Qe4 {[%clk 0:01:34]}  e6 {[%clk 0:01:15]} 16. f4 {[%clk 0:01:33]}  b5 {[%clk 0:01:12]} 17. Bf3 {[%clk 0:01:27]}  Ne7 {[%clk 0:01:07]} 18. Ba1 {[%clk 0:01:26]}  Nf5 {[%clk 0:00:57]} 19. Qb7 {[%clk 0:01:21]}  Qa5 {[%clk 0:00:54]} 20. a4 {[%clk 0:01:18]}  Nd6 {[%clk 0:00:53]} 21. Qa7 {[%clk 0:01:10]}  Nc8 {[%clk 0:00:47]} 22. Qb7 {[%clk 0:01:07]}  Nd6 {[%clk 0:00:42]} 23. Qc6 {[%clk 0:01:06]}  Nb8 {[%clk 0:00:41]} 24. Qxc5 {[%clk 0:01:06]}  Nf5 {[%clk 0:00:22]} 25. b4 {[%clk 0:01:06]}  Nd7 {[%clk 0:00:10]} 26. Qxf8+ {[%clk 0:01:06]} 1-0


[Site "https://www.chess.com"]

[Event "Titled Tuesday Blitz October 31 Late 2023"]
[White "Bortnyk, Mykola"]
[Black "Holt, Conrad"]
[WhiteFideId "14120836"]
[BlackFideId "2034387"]
[WhiteElo "2998"]
[BlackElo "2812"]
[Result "1-0"]
[Round "6"]
[TimeControl "180+1"]
[Date "2023.10.31"]
[WhiteClock "0:00:06"]
[BlackClock "0:00:00"]
[Board "12"]

1. e4 {[%clk 0:02:59]}  e6 {[%clk 0:02:59]} 2. d4 {[%clk 0:02:59]}  d5 {[%clk 0:02:59]} 3. exd5 {[%clk 0:03:00]}  exd5 {[%clk 0:02:59]} 4. c4 {[%clk 0:03:01]}  Bb4+ {[%clk 0:02:59]} 5. Bd2 {[%clk 0:03:00]}  Bxd2+ {[%clk 0:02:56]} 6. Qxd2 {[%clk 0:03:01]}  Ne7 {[%clk 0:02:55]} 7. Nc3 {[%clk 0:03:00]}  O-O {[%clk 0:02:53]} 8. Nf3 {[%clk 0:03:00]}  Nbc6 {[%clk 0:02:50]} 9. h3 {[%clk 0:02:48]}  Re8 {[%clk 0:02:49]} 10. Be2 {[%clk 0:02:47]}  dxc4 {[%clk 0:02:48]} 11. O-O-O {[%clk 0:02:44]}  Na5 {[%clk 0:02:37]} 12. d5 {[%clk 0:02:39]}  Nf5 {[%clk 0:02:31]} 13. Nb5 {[%clk 0:02:17]}  Bd7 {[%clk 0:02:24]} 14. Nbd4 {[%clk 0:02:11]}  b6 {[%clk 0:02:07]} 15. Rhe1 {[%clk 0:01:59]}  Nxd4 {[%clk 0:02:03]} 16. Qxd4 {[%clk 0:01:57]}  Ba4 {[%clk 0:01:57]} 17. Rd2 {[%clk 0:01:51]}  Qe7 {[%clk 0:01:27]} 18. Qc3 {[%clk 0:01:27]}  Qc5 {[%clk 0:01:11]} 19. Nd4 {[%clk 0:01:20]}  Qxd5 {[%clk 0:00:56]} 20. Rf1 {[%clk 0:01:14]}  Rad8 {[%clk 0:00:50]} 21. Bf3 {[%clk 0:01:08]}  Qg5 {[%clk 0:00:48]} 22. h4 {[%clk 0:00:59]}  Qxh4 {[%clk 0:00:45]} 23. Bd1 {[%clk 0:00:50]}  Bxd1 {[%clk 0:00:38]} 24. Rfxd1 {[%clk 0:00:51]}  Qf6 {[%clk 0:00:34]} 25. g4 {[%clk 0:00:34]}  c5 {[%clk 0:00:30]} 26. Nb5 {[%clk 0:00:31]}  Rxd2 {[%clk 0:00:30]} 27. Qxd2 {[%clk 0:00:27]}  Nc6 {[%clk 0:00:24]} 28. g5 {[%clk 0:00:26]}  Qe7 {[%clk 0:00:21]} 29. Qd7 {[%clk 0:00:17]}  Qxd7 {[%clk 0:00:08]} 30. Rxd7 {[%clk 0:00:18]}  a6 {[%clk 0:00:09]} 31. Nc3 {[%clk 0:00:11]}  b5 {[%clk 0:00:08]} 32. a3 {[%clk 0:00:09]}  Nd4 {[%clk 0:00:00]} 33. f4 {[%clk 0:00:06]} 1-0


[Site "https://www.chess.com"]

[Event "Titled Tuesday Blitz October 31 Late 2023"]
[White "Oparin, Grigoriy"]
[Black "Brodsky, David"]
[WhiteFideId "24125890"]
[BlackFideId "2073250"]
[WhiteElo "2969"]
[BlackElo "2807"]
[Result "0-1"]
[Round "6"]
[TimeControl "180+1"]
[Date "2023.10.31"]
[WhiteClock "0:01:26"]
[BlackClock "0:00:05"]
[Board "13"]

1. Nc3 {[%clk 0:03:00]}  d5 {[%clk 0:02:58]} 2. e4 {[%clk 0:03:01]}  dxe4 {[%clk 0:02:51]} 3. Nxe4 {[%clk 0:03:02]}  Bf5 {[%clk 0:02:48]} 4. Ng3 {[%clk 0:03:01]}  Bg6 {[%clk 0:02:48]} 5. Nf3 {[%clk 0:03:00]}  e6 {[%clk 0:02:46]} 6. h4 {[%clk 0:02:55]}  h6 {[%clk 0:02:38]} 7. Ne5 {[%clk 0:02:55]}  Bh7 {[%clk 0:02:38]} 8. Qf3 {[%clk 0:02:55]}  Qf6 {[%clk 0:02:35]} 9. Qxb7 {[%clk 0:02:40]}  Qxe5+ {[%clk 0:02:34]} 10. Be2 {[%clk 0:02:40]}  c6 {[%clk 0:01:28]} 11. d4 {[%clk 0:02:31]}  Qa5+ {[%clk 0:01:17]} 12. Bd2 {[%clk 0:02:31]}  Qb6 {[%clk 0:01:13]} 13. Qxa8 {[%clk 0:02:31]}  Bd6 {[%clk 0:01:00]} 14. a4 {[%clk 0:02:25]}  Nf6 {[%clk 0:00:50]} 15. a5 {[%clk 0:02:25]}  Qxb2 {[%clk 0:00:46]} 16. O-O {[%clk 0:02:22]}  Bxg3 {[%clk 0:00:28]} 17. Rab1 {[%clk 0:02:02]}  Bxf2+ {[%clk 0:00:15]} 18. Kxf2 {[%clk 0:02:02]}  Qxd4+ {[%clk 0:00:15]} 19. Be3 {[%clk 0:02:03]}  Ne4+ {[%clk 0:00:14]} 20. Ke1 {[%clk 0:01:35]}  Qc3+ {[%clk 0:00:12]} 21. Kd1 {[%clk 0:01:35]}  Nf2+ {[%clk 0:00:07]} 22. Rxf2 {[%clk 0:01:27]}  Bxc2+ {[%clk 0:00:06]} 23. Kc1 {[%clk 0:01:27]}  Bd3+ {[%clk 0:00:05]} 24. Kd1 {[%clk 0:01:26]}  Bc2+ {[%clk 0:00:05]} 25. Kc1 {[%clk 0:01:26]}  Bb3# {[%clk 0:00:05]} 0-1


[Site "https://www.chess.com"]

[Event "Titled Tuesday Blitz October 31 Late 2023"]
[White "Korchmar, Vasiliy"]
[Black "Sjugirov, Sanan"]
[WhiteFideId "24131750"]
[BlackFideId "4189302"]
[WhiteElo "2743"]
[BlackElo "2943"]
[Result "0-1"]
[Round "6"]
[TimeControl "180+1"]
[Date "2023.10.31"]
[WhiteClock "0:00:00"]
[BlackClock "0:00:05"]
[Board "16"]

1. e4 {[%clk 0:03:00]}  c5 {[%clk 0:03:00]} 2. d4 {[%clk 0:03:00]}  cxd4 {[%clk 0:03:00]} 3. Qxd4 {[%clk 0:03:01]}  Nc6 {[%clk 0:02:58]} 4. Qd3 {[%clk 0:03:02]}  e6 {[%clk 0:02:57]} 5. Nc3 {[%clk 0:03:02]}  a6 {[%clk 0:02:54]} 6. Bf4 {[%clk 0:03:02]}  b5 {[%clk 0:02:52]} 7. O-O-O {[%clk 0:03:02]}  Nf6 {[%clk 0:02:43]} 8. e5 {[%clk 0:02:49]}  Nh5 {[%clk 0:02:38]} 9. Bd2 {[%clk 0:02:38]}  Nxe5 {[%clk 0:02:36]} 10. Qe2 {[%clk 0:02:37]}  b4 {[%clk 0:02:29]} 11. Nd5 {[%clk 0:02:13]}  Qa5 {[%clk 0:02:19]} 12. Bxb4 {[%clk 0:01:38]}  Bxb4 {[%clk 0:02:04]} 13. Qxe5 {[%clk 0:01:38]}  Nf6 {[%clk 0:00:25]} 14. Nc7+ {[%clk 0:01:26]}  Ke7 {[%clk 0:00:25]} 15. Qxa5 {[%clk 0:01:24]}  Bxa5 {[%clk 0:00:26]} 16. Nxa8 {[%clk 0:01:25]}  Bb7 {[%clk 0:00:26]} 17. b4 {[%clk 0:01:13]}  Bd8 {[%clk 0:00:21]} 18. Nf3 {[%clk 0:01:14]}  a5 {[%clk 0:00:18]} 19. bxa5 {[%clk 0:00:49]}  Bxa5 {[%clk 0:00:17]} 20. Bb5 {[%clk 0:00:43]}  Rxa8 {[%clk 0:00:16]} 21. Ne5 {[%clk 0:00:44]}  Bc3 {[%clk 0:00:10]} 22. Nc4 {[%clk 0:00:10]}  Rxa2 {[%clk 0:00:08]} 23. Nd2 {[%clk 0:00:11]}  Ra1+ {[%clk 0:00:07]} 24. Nb1 {[%clk 0:00:11]}  Bd5 {[%clk 0:00:05]} 25. Rd3 {[%clk 0:00:00]}  Ba2 {[%clk 0:00:05]} 0-1


[Site "https://www.chess.com"]

[Event "Titled Tuesday Blitz October 31 Late 2023"]
[White "Grigoriants, Sergey"]
[Black "Sturt, Raven"]
[WhiteFideId "4130804"]
[BlackFideId "2007304"]
[WhiteElo "2895"]
[BlackElo "2545"]
[Result "1-0"]
[Round "6"]
[TimeControl "180+1"]
[Date "2023.10.31"]
[WhiteClock "0:00:17"]
[BlackClock "0:00:00"]
[Board "21"]

1. d4 {[%clk 0:02:56]}  f5 {[%clk 0:02:53]} 2. Bg5 {[%clk 0:02:52]}  g6 {[%clk 0:02:52]} 3. e3 {[%clk 0:02:51]}  Bg7 {[%clk 0:02:52]} 4. h4 {[%clk 0:02:49]}  h6 {[%clk 0:02:51]} 5. Bf4 {[%clk 0:02:48]}  Nf6 {[%clk 0:02:52]} 6. Nf3 {[%clk 0:02:48]}  e6 {[%clk 0:02:43]} 7. Ne5 {[%clk 0:02:44]}  O-O {[%clk 0:02:35]} 8. Nxg6 {[%clk 0:02:44]}  Re8 {[%clk 0:02:35]} 9. Nc3 {[%clk 0:02:43]}  d6 {[%clk 0:02:34]} 10. h5 {[%clk 0:02:39]}  Nc6 {[%clk 0:02:34]} 11. Bc4 {[%clk 0:02:37]}  Kh7 {[%clk 0:02:32]} 12. Bg3 {[%clk 0:02:23]}  a6 {[%clk 0:02:25]} 13. a3 {[%clk 0:02:22]}  b5 {[%clk 0:02:26]} 14. Ba2 {[%clk 0:02:19]}  b4 {[%clk 0:02:19]} 15. axb4 {[%clk 0:02:17]}  Nxb4 {[%clk 0:02:19]} 16. Bb3 {[%clk 0:02:18]}  Bb7 {[%clk 0:02:18]} 17. O-O {[%clk 0:02:15]}  Qc8 {[%clk 0:01:52]} 18. Ra5 {[%clk 0:01:46]}  Nc6 {[%clk 0:01:45]} 19. Ra4 {[%clk 0:01:44]}  Nd8 {[%clk 0:01:34]} 20. Nf4 {[%clk 0:01:18]}  Bc6 {[%clk 0:01:20]} 21. Ra2 {[%clk 0:01:05]}  Bb7 {[%clk 0:01:16]} 22. Qd3 {[%clk 0:01:01]}  Nf7 {[%clk 0:01:00]} 23. Bxe6 {[%clk 0:00:49]}  Rxe6 {[%clk 0:00:52]} 24. Qxf5+ {[%clk 0:00:49]}  Kg8 {[%clk 0:00:52]} 25. Nxe6 {[%clk 0:00:42]}  Ng5 {[%clk 0:00:47]} 26. Nxg7 {[%clk 0:00:41]}  Kxg7 {[%clk 0:00:47]} 27. Qxc8 {[%clk 0:00:41]}  Rxc8 {[%clk 0:00:48]} 28. Bh4 {[%clk 0:00:36]}  Ngh7 {[%clk 0:00:42]} 29. Bxf6+ {[%clk 0:00:34]}  Nxf6 {[%clk 0:00:42]} 30. f3 {[%clk 0:00:34]}  Nxh5 {[%clk 0:00:41]} 31. Kf2 {[%clk 0:00:34]}  Kg6 {[%clk 0:00:38]} 32. Rfa1 {[%clk 0:00:32]}  Rb8 {[%clk 0:00:35]} 33. b3 {[%clk 0:00:32]}  Ra8 {[%clk 0:00:34]} 34. Ra5 {[%clk 0:00:31]}  Ng7 {[%clk 0:00:33]} 35. Nd5 {[%clk 0:00:30]}  Ne6 {[%clk 0:00:23]} 36. Nf4+ {[%clk 0:00:26]}  Nxf4 {[%clk 0:00:23]} 37. exf4 {[%clk 0:00:27]}  Rf8 {[%clk 0:00:18]} 38. f5+ {[%clk 0:00:24]}  Kg7 {[%clk 0:00:18]} 39. g4 {[%clk 0:00:24]}  Re8 {[%clk 0:00:17]} 40. Re1 {[%clk 0:00:24]}  Rc8 {[%clk 0:00:15]} 41. Re7+ {[%clk 0:00:22]}  Kf6 {[%clk 0:00:15]} 42. Re6+ {[%clk 0:00:23]}  Kg7 {[%clk 0:00:15]} 43. Kg3 {[%clk 0:00:22]}  h5 {[%clk 0:00:08]} 44. gxh5 {[%clk 0:00:17]}  Kf7 {[%clk 0:00:07]} 45. Kf4 {[%clk 0:00:17]}  Rh8 {[%clk 0:00:04]} 46. h6 {[%clk 0:00:16]}  Rg8 {[%clk 0:00:04]} 47. Rg6 {[%clk 0:00:16]}  Re8 {[%clk 0:00:02]} 48. Rg7+ {[%clk 0:00:16]}  Kf6 {[%clk 0:00:00]} 49. Rxc7 {[%clk 0:00:17]} 1-0


[Site "https://www.chess.com"]

[Event "Titled Tuesday Blitz October 31 Late 2023"]
[White "BardArtem"]
[Black "Elsa167"]
[WhiteElo "2710"]
[BlackElo "2957"]
[Result "1/2-1/2"]
[Round "6"]
[TimeControl "180+1"]
[Date "2023.10.31"]
[WhiteClock "0:00:02"]
[BlackClock "0:00:07"]
[Board "22"]

1. e4 {[%clk 0:02:58]}  e6 {[%clk 0:02:58]} 2. d4 {[%clk 0:02:57]}  d5 {[%clk 0:02:58]} 3. Nc3 {[%clk 0:02:58]}  Bb4 {[%clk 0:02:58]} 4. Ne2 {[%clk 0:02:57]}  dxe4 {[%clk 0:02:58]} 5. a3 {[%clk 0:02:57]}  Bxc3+ {[%clk 0:02:59]} 6. Nxc3 {[%clk 0:02:58]}  Nc6 {[%clk 0:03:00]} 7. Bf4 {[%clk 0:02:57]}  Nf6 {[%clk 0:02:59]} 8. Bb5 {[%clk 0:02:57]}  Bd7 {[%clk 0:03:00]} 9. d5 {[%clk 0:02:54]}  exd5 {[%clk 0:02:57]} 10. Nxd5 {[%clk 0:02:55]}  Nxd5 {[%clk 0:02:57]} 11. Qxd5 {[%clk 0:02:55]}  O-O {[%clk 0:02:43]} 12. O-O-O {[%clk 0:02:53]}  Qf6 {[%clk 0:02:29]} 13. Be3 {[%clk 0:02:13]}  Bf5 {[%clk 0:02:02]} 14. Bxc6 {[%clk 0:02:08]}  bxc6 {[%clk 0:02:02]} 15. Qd4 {[%clk 0:02:08]}  Qg6 {[%clk 0:01:57]} 16. h3 {[%clk 0:02:01]}  a5 {[%clk 0:01:32]} 17. g4 {[%clk 0:02:00]}  Be6 {[%clk 0:01:33]} 18. Qe5 {[%clk 0:01:50]}  a4 {[%clk 0:01:20]} 19. Qxc7 {[%clk 0:01:20]}  Bd5 {[%clk 0:01:19]} 20. Qe5 {[%clk 0:01:15]}  Rfe8 {[%clk 0:01:17]} 21. Qc3 {[%clk 0:01:13]}  Rab8 {[%clk 0:01:15]} 22. h4 {[%clk 0:01:13]}  Qe6 {[%clk 0:01:04]} 23. h5 {[%clk 0:01:08]}  h6 {[%clk 0:00:45]} 24. g5 {[%clk 0:01:07]}  hxg5 {[%clk 0:00:45]} 25. h6 {[%clk 0:01:01]}  Qf6 {[%clk 0:00:26]} 26. Bd4 {[%clk 0:00:45]}  Qf4+ {[%clk 0:00:24]} 27. Kb1 {[%clk 0:00:46]}  f6 {[%clk 0:00:24]} 28. hxg7 {[%clk 0:00:40]}  Kxg7 {[%clk 0:00:24]} 29. Bxf6+ {[%clk 0:00:40]}  Kg6 {[%clk 0:00:24]} 30. Bd4 {[%clk 0:00:29]}  e3 {[%clk 0:00:19]} 31. fxe3 {[%clk 0:00:27]}  Qe4 {[%clk 0:00:13]} 32. Rhg1 {[%clk 0:00:26]}  Rb3 {[%clk 0:00:11]} 33. Qe1 {[%clk 0:00:18]}  Rxe3 {[%clk 0:00:06]} 34. Qxe3 {[%clk 0:00:15]}  Qxe3 {[%clk 0:00:07]} 35. Bxe3 {[%clk 0:00:16]}  Rxe3 {[%clk 0:00:07]} 36. Rd4 {[%clk 0:00:16]}  Kf5 {[%clk 0:00:03]} 37. Rdg4 {[%clk 0:00:16]}  Re1+ {[%clk 0:00:01]} 38. Rxe1 {[%clk 0:00:14]}  Kxg4 {[%clk 0:00:02]} 39. c4 {[%clk 0:00:13]}  Bf3 {[%clk 0:00:02]} 40. Kc2 {[%clk 0:00:13]}  Kg3 {[%clk 0:00:01]} 41. Rg1+ {[%clk 0:00:11]}  Kf4 {[%clk 0:00:01]} 42. Kd2 {[%clk 0:00:10]}  g4 {[%clk 0:00:02]} 43. Rc1 {[%clk 0:00:06]}  g3 {[%clk 0:00:03]} 44. Ke1 {[%clk 0:00:07]}  Ke3 {[%clk 0:00:02]} 45. Rc3+ {[%clk 0:00:07]}  Kf4 {[%clk 0:00:03]} 46. Kf1 {[%clk 0:00:07]}  Be4 {[%clk 0:00:02]} 47. Kg1 {[%clk 0:00:07]}  c5 {[%clk 0:00:03]} 48. b3 {[%clk 0:00:07]}  axb3 {[%clk 0:00:03]} 49. Rxb3 {[%clk 0:00:08]}  Ke5 {[%clk 0:00:03]} 50. a4 {[%clk 0:00:06]}  Kd4 {[%clk 0:00:03]} 51. a5 {[%clk 0:00:07]}  Kxc4 {[%clk 0:00:04]} 52. Ra3 {[%clk 0:00:03]}  g2 {[%clk 0:00:03]} 53. a6 {[%clk 0:00:02]}  Kb5 {[%clk 0:00:03]} 54. a7 {[%clk 0:00:03]}  Ba8 {[%clk 0:00:03]} 55. Rb3+ {[%clk 0:00:03]}  Ka6 {[%clk 0:00:04]} 56. Ra3+ {[%clk 0:00:02]}  Kb6 {[%clk 0:00:04]} 57. Ra1 {[%clk 0:00:01]}  c4 {[%clk 0:00:04]} 58. Kf2 {[%clk 0:00:02]}  c3 {[%clk 0:00:04]} 59. Kg1 {[%clk 0:00:02]}  Kc5 {[%clk 0:00:04]} 60. Kf2 {[%clk 0:00:03]}  Kc4 {[%clk 0:00:04]} 61. Rb1 {[%clk 0:00:02]}  c2 {[%clk 0:00:03]} 62. Rb8 {[%clk 0:00:02]}  Kd3 {[%clk 0:00:02]} 63. Rd8+ {[%clk 0:00:02]}  Ke4 {[%clk 0:00:03]} 64. Re8+ {[%clk 0:00:01]}  Kd3 {[%clk 0:00:03]} 65. Rd8+ {[%clk 0:00:02]}  Ke4 {[%clk 0:00:03]} 66. Re8+ {[%clk 0:00:02]}  Kd4 {[%clk 0:00:03]} 67. Rd8+ {[%clk 0:00:02]}  Bd5 {[%clk 0:00:04]} 68. Rxd5+ {[%clk 0:00:01]}  Kc4 {[%clk 0:00:04]} 69. a8=Q {[%clk 0:00:01]}  g1=Q+ {[%clk 0:00:05]} 70. Kxg1 {[%clk 0:00:02]}  c1=Q+ {[%clk 0:00:05]} 71. Kf2 {[%clk 0:00:02]}  Qf4+ {[%clk 0:00:05]} 72. Kg1 {[%clk 0:00:01]}  Qg3+ {[%clk 0:00:05]} 73. Kf1 {[%clk 0:00:02]}  Qf3+ {[%clk 0:00:06]} 74. Ke1 {[%clk 0:00:03]}  Qxd5 {[%clk 0:00:07]} 75. Qxd5+ {[%clk 0:00:02]}  Kxd5 {[%clk 0:00:07]} 1/2-1/2


[Site "https://www.chess.com"]